{"text_format":"1","workbook":"xlsx","n_sheets":2,"sheets":["負荷設備等内訳書","集合住宅用"],"not_rendered":{"charts":0,"images":0,"macros":1,"external_links":1,"defined_names":14,"comments":2,"pivot_tables":0},"unopened":[],"bounds":{"document_bytes":16777216,"sheet_cells":100000,"rows_first":2000,"rows_last":500,"rows_between":2000,"halvings":0,"cell_chars":16384,"cell_head_chars":4096},"cells_cut":0,"cells_raw":0,"read":"whole","date_system":"1900"}

{"sheet":"負荷設備等内訳書","index":0,"n_rows":100,"n_cols":83,"rows_kept":100,"cut":false,"hidden":false,"merged":[[47,10,47,46],[97,23,97,25],[97,26,97,27],[97,28,97,30],[97,31,97,32],[97,33,97,35],[96,1,96,4],[96,5,96,12],[96,13,96,17],[96,18,96,22],[96,23,96,25],[96,26,96,27],[94,38,94,42],[94,43,94,46],[96,28,96,30],[96,31,96,32],[96,33,96,35],[96,36,96,37],[96,38,96,40],[96,41,96,42],[95,1,95,4],[95,5,95,12],[95,43,95,46],[94,33,94,37],[98,43,98,46],[6,13,6,23],[5,13,5,23],[97,36,97,37],[97,38,97,40],[97,41,97,42],[97,43,97,46],[98,1,98,27],[98,28,98,32],[98,33,98,35],[98,36,98,37],[98,38,98,40],[98,41,98,42],[96,43,96,46],[97,1,97,4],[97,5,97,12],[97,13,97,17],[97,18,97,22],[95,33,95,35],[95,36,95,37],[95,38,95,40],[95,41,95,42],[7,1,7,12],[7,13,7,23],[95,23,95,25],[95,26,95,27],[95,28,95,30],[94,1,94,4],[94,5,94,12],[94,13,94,17],[94,18,94,22],[94,23,94,27],[94,28,94,32],[95,31,95,32],[95,13,95,17],[95,18,95,22],[89,18,89,20],[89,21,89,22],[90,41,90,42],[90,43,90,46],[91,1,91,22],[91,23,91,27],[91,28,91,30],[91,31,91,32],[91,33,91,35],[91,36,91,37],[91,38,91,46],[90,26,90,27],[90,28,90,30],[90,31,90,32],[90,33,90,35],[90,36,90,37],[90,38,90,40],[87,10,87,14],[87,15,87,17],[87,18,87,20],[87,21,87,22],[89,38,89,40],[89,41,89,42],[89,43,89,46],[90,1,90,5],[90,6,90,9],[90,10,90,14],[90,15,90,17],[90,18,90,20],[90,21,90,22],[90,23,90,25],[89,23,89,25],[89,26,89,27],[89,28,89,30],[89,31,89,32],[89,33,89,35],[89,36,89,37],[89,1,89,5],[89,6,89,9],[89,10,89,14],[89,15,89,17],[88,31,88,32],[88,33,88,35],[88,36,88,37],[88,38,88,40],[88,41,88,42],[88,43,88,46],[87,43,87,46],[88,1,88,5],[88,6,88,9],[88,10,88,14],[88,15,88,17],[88,18,88,20],[88,21,88,22],[88,23,88,25],[88,26,88,27],[88,28,88,30],[87,28,87,30],[87,31,87,32],[87,33,87,35],[87,36,87,37],[87,38,87,40],[87,41,87,42],[87,1,87,5],[87,6,87,9],[85,1,85,5],[85,6,85,9],[85,10,85,14],[85,15,85,17],[85,18,85,20],[86,28,86,30],[86,31,86,32],[86,33,86,35],[86,36,86,37],[83,36,83,37],[83,38,83,40],[83,41,83,42],[83,1,83,5],[83,6,83,9],[83,10,83,14],[87,23,87,25],[87,26,87,27],[86,26,86,27],[85,38,85,40],[85,41,85,42],[86,1,86,5],[86,6,86,9],[86,10,86,14],[86,15,86,17],[86,18,86,20],[86,21,86,22],[86,23,86,25],[85,23,85,25],[85,26,85,27],[85,28,85,30],[85,31,85,32],[85,33,85,35],[85,36,85,37],[84,1,84,5],[84,6,84,9],[84,10,84,14],[84,15,84,17],[84,18,84,20],[84,21,84,22],[84,23,84,25],[84,26,84,27],[84,28,84,30],[84,31,84,32],[84,33,84,35],[84,36,84,37],[84,38,84,40],[85,21,85,22],[86,41,86,42],[86,43,86,46],[84,41,84,42],[84,43,84,46],[85,43,85,46],[86,38,86,40],[83,15,83,17],[83,18,83,20],[83,21,83,22],[83,23,83,25],[83,26,83,27],[82,26,82,27],[81,38,81,40],[81,41,81,42],[81,43,81,46],[81,28,81,30],[81,31,81,32],[81,33,81,35],[81,36,81,37],[82,41,82,42],[82,43,82,46],[82,28,82,30],[82,31,82,32],[82,33,82,35],[82,36,82,37],[82,38,82,40],[83,43,83,46],[83,28,83,30],[83,31,83,32],[83,33,83,35],[82,1,82,5],[82,6,82,9],[82,10,82,14],[82,15,82,17],[82,18,82,20],[82,21,82,22],[82,23,82,25],[81,23,81,25],[81,26,81,27],[81,1,81,5],[81,6,81,9],[81,10,81,14],[81,15,81,17],[81,18,81,20],[81,21,81,22],[80,31,80,32],[80,33,80,35],[80,36,80,37],[80,38,80,40],[80,41,80,42],[80,43,80,46],[79,43,79,46],[80,1,80,5],[80,6,80,9],[80,10,80,14],[80,15,80,17],[80,18,80,20],[80,21,80,22],[80,23,80,25],[80,26,80,27],[80,28,80,30],[76,35,76,46],[79,1,79,5],[79,6,79,9],[79,10,79,14],[79,15,79,17],[79,18,79,22],[79,23,79,27],[79,28,79,32],[79,33,79,37],[79,38,79,42],[76,3,76,19],[76,20,76,24],[76,25,76,27],[76,28,76,29],[76,30,76,32],[76,33,76,34],[75,25,75,27],[75,28,75,29],[75,30,75,32],[75,33,75,34],[75,35,75,38],[75,39,75,46],[75,3,75,9],[75,10,75,12],[75,13,75,14],[75,15,75,19],[75,20,75,22],[75,23,75,24],[74,25,74,27],[74,28,74,29],[74,30,74,32],[74,33,74,34],[74,35,74,38],[74,39,74,46],[74,3,74,9],[74,10,74,12],[74,13,74,14],[74,15,74,19],[74,20,74,22],[74,23,74,24],[73,25,73,27],[73,28,73,29],[73,30,73,32],[73,33,73,34],[73,35,73,38],[73,39,73,46],[73,3,73,9],[73,10,73,12],[73,13,73,14],[73,15,73,19],[73,20,73,22],[73,23,73,24],[72,25,72,27],[72,28,72,29],[72,30,72,32],[72,33,72,34],[72,35,72,38],[72,39,72,46],[72,3,72,9],[72,10,72,12],[72,13,72,14],[72,15,72,19],[72,20,72,22],[72,23,72,24],[71,25,71,27],[71,28,71,29],[71,30,71,32],[71,33,71,34],[71,35,71,38],[71,39,71,46],[71,3,71,9],[71,10,71,12],[71,13,71,14],[71,15,71,19],[71,20,71,22],[71,23,71,24],[70,23,70,24],[70,25,70,27],[70,28,70,29],[70,30,70,32],[70,33,70,34],[70,35,70,38],[69,25,69,27],[69,28,69,29],[69,30,69,32],[69,33,69,34],[69,35,69,38],[69,23,69,24],[70,3,70,9],[70,10,70,12],[70,13,70,14],[70,15,70,19],[70,20,70,22],[69,3,69,9],[69,10,69,12],[69,13,69,14],[69,15,69,19],[69,20,69,22],[68,23,68,24],[68,25,68,27],[68,28,68,29],[68,30,68,32],[68,33,68,34],[68,35,68,38],[67,25,67,27],[67,28,67,29],[67,30,67,32],[67,33,67,34],[67,35,67,38],[67,23,67,24],[68,3,68,9],[68,10,68,12],[68,13,68,14],[68,15,68,19],[68,20,68,22],[67,3,67,9],[67,10,67,12],[67,13,67,14],[67,15,67,19],[67,20,67,22],[66,23,66,24],[66,25,66,27],[66,28,66,29],[66,30,66,32],[66,33,66,34],[66,35,66,38],[65,25,65,27],[65,28,65,29],[65,30,65,32],[65,33,65,34],[65,35,65,38],[65,23,65,24],[66,3,66,9],[66,10,66,12],[66,13,66,14],[66,15,66,19],[66,20,66,22],[65,3,65,9],[65,10,65,12],[65,13,65,14],[65,15,65,19],[65,20,65,22],[64,23,64,24],[64,25,64,27],[64,28,64,29],[64,30,64,32],[64,33,64,34],[64,35,64,38],[63,25,63,27],[63,28,63,29],[63,30,63,32],[63,33,63,34],[63,35,63,38],[63,23,63,24],[64,3,64,9],[64,10,64,12],[64,13,64,14],[64,15,64,19],[64,20,64,22],[63,3,63,9],[63,10,63,12],[63,13,63,14],[63,15,63,19],[63,20,63,22],[61,15,61,19],[61,20,61,22],[62,23,62,24],[62,25,62,27],[62,28,62,29],[62,30,62,32],[62,33,62,34],[62,35,62,38],[61,25,61,27],[61,28,61,29],[61,30,61,32],[61,33,61,34],[61,35,61,38],[61,23,61,24],[59,35,59,46],[60,1,76,2],[60,3,60,9],[60,10,60,14],[60,15,60,19],[60,20,60,24],[60,25,60,29],[60,30,60,34],[60,35,60,38],[60,39,70,46],[59,3,59,19],[59,20,59,24],[59,25,59,27],[59,28,59,29],[59,30,59,32],[59,33,59,34],[62,3,62,9],[62,10,62,12],[62,13,62,14],[62,15,62,19],[62,20,62,22],[61,3,61,9],[61,10,61,12],[61,13,61,14],[58,25,58,27],[58,28,58,29],[58,30,58,32],[58,33,58,34],[58,35,58,38],[58,39,58,46],[58,3,58,9],[58,10,58,12],[58,13,58,14],[58,15,58,19],[58,20,58,22],[58,23,58,24],[57,25,57,27],[57,28,57,29],[57,30,57,32],[57,33,57,34],[57,35,57,38],[57,39,57,46],[57,3,57,9],[57,10,57,12],[57,13,57,14],[57,15,57,19],[57,20,57,22],[57,23,57,24],[56,25,56,27],[56,28,56,29],[56,30,56,32],[56,33,56,34],[56,35,56,38],[56,39,56,46],[56,3,56,9],[56,10,56,12],[56,13,56,14],[56,15,56,19],[56,20,56,22],[56,23,56,24],[55,25,55,27],[55,28,55,29],[55,30,55,32],[55,33,55,34],[55,35,55,38],[55,39,55,46],[55,3,55,9],[55,10,55,12],[55,13,55,14],[55,15,55,19],[55,20,55,22],[55,23,55,24],[54,30,54,32],[54,33,54,34],[54,35,54,38],[54,39,54,46],[54,3,54,9],[54,10,54,12],[54,13,54,14],[54,15,54,19],[54,20,54,22],[54,23,54,24],[52,39,52,46],[52,3,52,9],[52,10,52,12],[52,13,52,14],[52,15,52,19],[52,20,52,22],[52,23,52,24],[53,25,53,27],[53,28,53,29],[53,30,53,32],[53,33,53,34],[53,35,53,38],[53,39,53,46],[53,3,53,9],[53,10,53,12],[53,13,53,14],[53,15,53,19],[53,20,53,22],[53,23,53,24],[50,39,50,46],[50,3,50,9],[50,10,50,12],[50,13,50,14],[50,15,50,19],[50,20,50,22],[50,23,50,24],[51,25,51,27],[51,28,51,29],[51,30,51,32],[51,33,51,34],[51,35,51,38],[51,39,51,46],[51,3,51,9],[51,10,51,12],[51,13,51,14],[51,15,51,19],[51,20,51,22],[51,23,51,24],[48,39,48,46],[49,25,49,27],[49,28,49,29],[49,30,49,32],[49,33,49,34],[49,35,49,38],[49,39,49,46],[49,3,49,9],[49,10,49,12],[49,13,49,14],[49,15,49,19],[49,20,49,22],[49,23,49,24],[33,1,33,12],[33,13,33,19],[33,20,33,31],[33,32,33,38],[48,1,59,2],[48,3,48,9],[48,10,48,14],[48,15,48,19],[48,20,48,24],[48,25,48,29],[48,30,48,34],[48,35,48,38],[50,25,50,27],[50,28,50,29],[50,30,50,32],[50,33,50,34],[50,35,50,38],[52,25,52,27],[52,28,52,29],[52,30,52,32],[52,33,52,34],[52,35,52,38],[54,25,54,27],[54,28,54,29],[23,13,23,46],[27,44,27,46],[30,1,30,12],[30,13,30,19],[30,20,30,25],[30,26,30,46],[26,1,26,12],[26,13,26,19],[27,1,27,12],[27,13,27,19],[27,20,27,36],[27,37,27,43],[39,1,45,46],[36,1,36,12],[36,13,36,19],[10,13,10,20],[19,1,19,19],[19,20,19,46],[4,1,4,12],[5,1,5,12],[6,1,6,12],[16,1,16,19],[16,20,16,26],[10,1,10,12],[13,1,13,12],[13,13,13,19],[13,20,13,31],[13,32,13,38],[4,13,4,23],[5,25,5,47],[4,25,4,47],[6,25,6,47],[22,1,22,12],[22,13,22,19],[22,20,22,22],[23,1,23,12]]}
[]
[]
["※「使用形態」および「申込内容」を選択後，「青色の欄」を選択または記入願います。"]
["※「電気工事会社の電設工事申込申請方法」を選択後、「電気工事会社コード」を記入願います。",null,null,null,null,null,null,null,null,null,null,null,null,null,null,null,null,null,null,null,null,null,null,null,null,null,null,null,null,null,null,null,null,null,null,null,null,null,null,null,null,null,null,null,null,null,null,null,null,null,null,null,null,null,null,null,null,null,null,null,null,null,null,null,null,null,null,null,null,null,null,null,null,null,null,null,null,null,"選択してください","選択してください","選択してください","電灯定額","選択してください"]
[null,"使用形態",null,null,null,null,null,null,null,null,null,null,null,"選択してください",null,null,null,null,null,null,null,null,null,null,null,null,null,null,null,null,null,null,null,null,null,null,null,null,null,null,null,null,null,null,null,null,null,null,null,null,null,null,null,null,null,null,null,null,null,null,null,null,null,null,null,null,null,null,null,null,null,null,null,null,null,null,null,null,"有","電灯","新設","新設","希望なし"]
[null,"申込内容",null,null,null,null,null,null,null,null,null,null,null,"選択してください",null,null,null,null,null,null,null,null,null,null,null,{"$f":"IF($N$6=\"新設（電圧変更等）\",CA18,\"\")","v":""},null,null,null,null,null,null,null,null,null,null,null,null,null,null,null,null,null,null,null,null,null,null,null,null,null,null,null,null,null,null,null,null,null,null,null,null,null,null,null,null,null,null,null,null,null,null,null,null,null,null,null,null,"無","動力","新設（電圧変更等）","新設（電圧変更等）"]
[null,"電気工事会社の電設工事申請方法",null,null,null,null,null,null,null,null,null,null,null,"選択してください",null,null,null,null,null,null,null,null,null,null,null,null,null,null,null,null,null,null,null,null,null,null,null,null,null,null,null,null,null,null,null,null,null,null,null,null,null,null,null,null,null,null,null,null,null,null,null,null,null,null,null,null,null,null,null,null,null,null,null,null,null,null,null,null,null,"電灯臨時","設備変更（増加減少）","設備変更（増加減少）","道北統括支店（旭川）"]
[null,"電気工事会社コード",null,null,null,null,null,null,null,null,null,null,null,null,null,null,null,null,null,null,null,null,null,null,null,null,null,null,null,null,null,null,null,null,null,null,null,null,null,null,null,null,null,null,null,null,null,null,null,null,null,null,null,null,null,null,null,null,null,null,null,null,null,null,null,null,null,null,null,null,null,null,null,null,null,null,null,null,null,"動力臨時","設備変更（雑工）","設備変更（雑工）","稚内ＮＷＣ"]
[null,null,null,null,null,null,null,null,null,null,null,null,null,null,null,null,null,null,null,null,null,null,null,null,null,null,null,null,null,null,null,null,null,null,null,null,null,null,null,null,null,null,null,null,null,null,null,null,null,null,null,null,null,null,null,null,null,null,null,null,null,null,null,null,null,null,null,null,null,null,null,null,null,null,null,null,null,null,null,"電灯定額","協議減少",null,"浜頓別ＮＷＣ"]
["１．フリーエリア計量器払出",null,null,null,null,null,null,null,null,null,null,null,null,null,null,null,null,null,null,null,null,null,null,null,null,null,null,null,null,null,null,null,null,null,null,null,null,null,null,null,null,null,null,null,null,null,null,null,null,null,null,null,null,null,null,null,null,null,null,null,null,null,null,null,null,null,null,null,null,null,null,null,null,null,null,null,null,null,null,null,null,null,"天塩ＮＷＣ"]
[null,"希望事業所名",null,null,null,null,null,null,null,null,null,null,null,"選択してください",null,null,null,null,null,null,null,null,null,null,null,null,null,null,null,null,null,null,null,null,null,null,null,null,null,null,null,null,null,null,null,null,null,null,null,null,null,null,null,null,null,null,null,null,null,null,null,null,null,null,null,null,null,null,null,null,null,null,null,null,null,null,null,null,"電灯","動力","電灯臨時","動力臨時","羽幌ＮＷＣ"]
[null,"※５統括支店・５支店単位の管内においてのみ取扱可能",null,null,null,null,null,null,null,null,null,null,null,null,null,null,null,null,null,null,null,null,null,null,null,null,null,null,null,null,null,null,null,null,null,null,null,null,null,null,null,null,null,null,null,null,null,null,null,null,null,null,null,null,null,null,null,null,null,null,null,null,null,null,null,null,null,null,null,null,null,null,null,null,null,null,null,null,"新設","新設","新設","新設","名寄ＮＷＣ"]
["２．臨時契約",null,null,null,null,null,null,null,null,null,null,null,null,null,null,null,null,null,null,null,null,null,null,null,null,null,null,null,null,null,null,null,null,null,null,null,null,null,null,null,null,null,null,null,null,null,null,null,null,null,null,null,null,null,null,null,null,null,null,null,null,null,null,null,null,null,null,null,null,null,null,null,null,null,null,null,null,null,"新設（電圧変更等）","新設（電圧変更等）","新設（電圧変更等）","新設（電圧変更等）","留萌ＮＷＣ"]
[null,"本契約前の臨時契約の有無",null,null,null,null,null,null,null,null,null,null,null,"選択してください",null,null,null,null,null,null,"臨時設備から常時設備への流用",null,null,null,null,null,null,null,null,null,null,null,"選択してください",null,null,null,null,null,null,null,null,null,null,null,null,null,null,null,null,null,null,null,null,null,null,null,null,null,null,null,null,null,null,null,null,null,null,null,null,null,null,null,null,null,null,null,null,null,"設備変更（増加減少）","設備変更（増加減少）","設備変更（増加減少）","設備変更（増加減少）","深川ＮWC"]
[null,null,null,null,null,null,null,null,null,null,null,null,null,null,null,null,null,null,null,null,null,null,null,null,null,null,null,null,null,null,null,null,null,null,null,null,null,null,null,null,null,null,null,null,null,null,null,null,null,null,null,null,null,null,null,null,null,null,null,null,null,null,null,null,null,null,null,null,null,null,null,null,null,null,null,null,null,null,"設備変更（雑工）","設備変更（雑工）","設備変更（雑工）","設備変更（雑工）","富良野ＮＷＣ"]
["３．他契約の申込み",null,null,null,null,null,null,null,null,null,null,null,null,null,null,null,null,null,null,null,null,null,null,null,null,null,null,null,null,null,null,null,null,null,null,null,null,null,null,null,null,null,null,null,null,null,null,null,null,null,null,null,null,null,null,null,null,null,null,null,null,null,null,null,null,null,null,null,null,null,null,null,null,null,null,null,null,null,"協議減少","協議減少"]
[null,"同一需要場所における他契約の同時申込み",null,null,null,null,null,null,null,null,null,null,null,null,null,null,null,null,null,null,"選択してください",null,null,null,null,null,null,null,null,null,null,null,null,null,null,null,null,null,null,null,null,null,null,null,null,null,null,null,null,null,null,null,null,null,null,null,null,null,null,null,null,null,null,null,null,null,null,null,null,null,null,null,null,null,null,null,null,null,null,null,null,null,"北見支店"]
[null,"※集合住宅のお申込みの場合は，「集合住宅用」シートにもご記入願います。",null,null,null,null,null,null,null,null,null,null,null,null,null,null,null,null,null,null,null,null,null,null,null,null,null,null,null,null,null,null,null,null,null,null,null,null,null,null,null,null,null,null,null,null,null,null,null,null,null,null,null,null,null,null,null,null,null,null,null,null,null,null,null,null,null,null,null,null,null,null,null,null,null,null,null,null,"※高圧契約から低圧契約への変更，または，定額契約から従量契約への変更（逆の場合も含む）",null,null,null,"紋別ＮＷＣ"]
["４．供給形態の変更にともなう接続送電サービス変更",null,null,null,null,null,null,null,null,null,null,null,null,null,null,null,null,null,null,null,null,null,null,null,null,null,null,null,null,null,null,null,null,null,null,null,null,null,null,null,null,null,null,null,null,null,null,null,null,null,null,null,null,null,null,null,null,null,null,null,null,null,null,null,null,null,null,null,null,null,null,null,null,null,null,null,null,null,null,null,null,null,"遠軽ＮＷＣ"]
[null,"変更前（既契約）供給地点特定番号",null,null,null,null,null,null,null,null,null,null,null,null,null,null,null,null,null,null,null,null,null,null,null,null,null,null,null,null,null,null,null,null,null,null,null,null,null,null,null,null,null,null,null,null,null,null,null,null,null,null,null,null,null,null,null,null,null,null,null,null,null,null,null,null,null,null,null,null,null,null,null,null,null,null,null,null,null,null,null,null,"網走ＮＷＣ"]
[null,"※高圧契約から低圧契約への変更，または，定額契約から従量契約への変更（逆の場合も含む）",null,null,null,null,null,null,null,null,null,null,null,null,null,null,null,null,null,null,null,null,null,null,null,null,null,null,null,null,null,null,null,null,null,null,null,null,null,null,null,null,null,null,null,null,null,null,null,null,null,null,null,null,null,null,null,null,null,null,null,null,null,null,null,null,null,null,null,null,null,null,null,null,null,null,null,null,null,null,null,null,"斜里ＮＷＣ"]
["５．協議減少",null,null,null,null,null,"（実量制契約の場合）"]
[null,"協議減少値",null,null,null,null,null,null,null,null,null,null,null,null,null,null,null,null,null,null,"ｋＷ",null,null,null,null,null,null,null,null,null,null,null,null,null,null,null,null,null,null,null,null,null,null,null,null,null,null,null,null,null,null,null,null,null,null,null,null,null,null,null,null,null,null,null,null,null,null,null,null,null,null,null,null,null,null,null,null,null,null,null,null,null,"道央統括支店（札幌）"]
[null,"協議減少希望理由\n※根拠等の詳細は別紙を作成願います。",null,null,null,null,null,null,null,null,null,null,null,null,null,null,null,null,null,null,null,null,null,null,null,null,null,null,null,null,null,null,null,null,null,null,null,null,null,null,null,null,null,null,null,null,null,null,null,null,null,null,null,null,null,null,null,null,null,null,null,null,null,null,null,null,null,null,null,null,null,null,null,null,null,null,null,null,null,null,null,null,"札幌北ＮＷＣ"]
[null,null,null,null,null,null,null,null,null,null,null,null,null,null,null,null,null,null,null,null,null,null,null,null,null,null,null,null,null,null,null,null,null,null,null,null,null,null,null,null,null,null,null,null,null,null,null,null,null,null,null,null,null,null,null,null,null,null,null,null,null,null,null,null,null,null,null,null,null,null,null,null,null,null,null,null,null,null,null,null,null,null,"札幌西ＮＷＣ"]
["６．計量器および変成器の取付位置",null,null,null,null,null,null,null,null,null,null,null,null,null,null,"※計量器および変成器は，取付がない場合は記入不要です。",null,null,null,null,null,null,null,null,null,null,null,null,null,null,null,null,null,null,null,null,null,null,null,null,null,null,null,null,null,null,null,null,null,null,null,null,null,null,null,null,null,null,null,null,null,null,null,null,null,null,null,null,null,null,null,null,null,null,null,null,null,null,null,null,null,null,"札幌東ＮＷＣ"]
[null,"計量器取付位置",null,null,null,null,null,null,null,null,null,null,null,"選択してください",null,null,null,null,null,null,null,null,null,null,null,null,null,null,null,null,null,null,null,null,null,null,null,null,null,null,null,null,null,null,null,null,null,null,null,null,null,null,null,null,null,null,null,null,null,null,null,null,null,null,null,null,null,null,null,null,null,null,null,null,null,null,null,null,null,null,null,null,"札幌南ＮＷＣ"]
[null,"変成器取付位置",null,null,null,null,null,null,null,null,null,null,null,"選択してください",null,null,null,null,null,null,"計量器と変成器間の距離（変成器２次配線亘長）",null,null,null,null,null,null,null,null,null,null,null,null,null,null,null,null,null,null,null,null,null,null,null,"ｍ",null,null,null,null,null,null,null,null,null,null,null,null,null,null,null,null,null,null,null,null,null,null,null,null,null,null,null,null,null,null,null,null,null,null,null,null,null,"千歳ＮＷＣ"]
[null,null,null,null,null,null,null,null,null,null,null,null,null,null,null,null,null,null,null,null,null,null,null,null,null,null,null,null,null,null,null,null,null,null,null,null,null,null,null,null,null,null,null,null,null,null,null,null,null,null,null,null,null,null,null,null,null,null,null,null,null,null,null,null,null,null,null,null,null,null,null,null,null,null,null,null,null,null,"有"]
["７．発電設備",null,null,null,null,null,null,null,null,null,null,null,null,null,null,null,null,null,null,null,null,null,null,null,null,null,null,null,null,null,null,null,null,null,null,null,null,null,null,null,null,null,null,null,null,null,null,null,null,null,null,null,null,null,null,null,null,null,null,null,null,null,null,null,null,null,null,null,null,null,null,null,null,null,null,null,null,null,"送配電買取ＦＩＴ【太陽光10kW未満】\n(系統連系書類は，ほくでんＮＷ管轄事業所へ提出ください)",null,null,null,"岩見沢支店"]
[null,"系統連系同時申込の有無",null,null,null,null,null,null,null,null,null,null,null,"選択してください",null,null,null,null,null,null,"契約形態",null,null,null,null,null,"選択してください",null,null,null,null,null,null,null,null,null,null,null,null,null,null,null,null,null,null,null,null,null,null,null,null,null,null,null,null,null,null,null,null,null,null,null,null,null,null,null,null,null,null,null,null,null,null,null,null,null,null,null,"送配電買取ＦＩＴ【太陽光10kW未満以外】\n(系統連系書類は，ほくでんＮＷ電力受給ｾﾝﾀｰへ提出ください)",null,null,null,"滝川ＮＷＣ"]
[null,null,null,null,null,null,null,null,null,null,null,null,null,null,null,null,null,null,null,null,null,null,null,null,null,null,null,null,null,null,null,null,null,null,null,null,null,null,null,null,null,null,null,null,null,null,null,null,null,null,null,null,null,null,null,null,null,null,null,null,null,null,null,null,null,null,null,null,null,null,null,null,null,null,null,null,null,null,"発電量調整供給契約\n(系統連系書類は，ほくでんＮＷ託送ｻｰﾋﾞｽｾﾝﾀｰへ提出ください)",null,null,null,"栗山ＮＷＣ"]
["８．供給側接続事前検討（供給照会）の申込み",null,null,null,null,null,null,null,null,null,null,null,null,null,null,null,null,null,null,null,null,null,null,null,null,null,null,null,null,null,null,null,null,null,null,null,null,null,null,null,null,null,null,null,null,null,null,null,null,null,null,null,null,null,null,null,null,null,null,null,null,null,null,null,null,null,null,null,null,null,null,null,null,null,null,null,null,null,"逆潮流無\n(系統連系書類は，ほくでんＮＷ管轄事業所へ提出ください)"]
[null,"供給照会の有無",null,null,null,null,null,null,null,null,null,null,null,"選択してください",null,null,null,null,null,null,"照会№",null,null,null,null,null,null,null,null,null,null,null,null,null,null,null,null,null,null,null,null,null,null,null,null,null,null,null,null,null,null,null,null,null,null,null,null,null,null,null,null,null,null,null,null,null,null,null,null,null,null,null,null,null,null,null,null,null,null,null,null,null,"小樽支店"]
[null,null,null,null,null,null,null,null,null,null,null,null,null,null,null,null,null,null,null,null,null,null,null,null,"※「供給側接続事前検討の回答について」右上に記載された数字または英数字",null,null,null,null,null,null,null,null,null,null,null,null,null,null,null,null,null,null,null,null,null,null,null,null,null,null,null,null,null,null,null,null,null,null,null,null,null,null,null,null,null,null,null,null,null,null,null,null,null,null,null,null,null,null,null,null,null,"余市ＮＷＣ"]
["９．合計契約設備電力が50ｋW以上となる場合の低圧供給の希望",null,null,null,null,null,null,null,null,null,null,null,null,null,null,null,null,null,null,null,null,null,null,null,null,null,null,null,null,null,null,null,null,null,null,null,null,null,null,null,null,null,null,null,null,null,null,null,null,null,null,null,null,null,null,null,null,null,null,null,null,null,null,null,null,null,null,null,null,null,null,null,null,null,null,null,null,null,null,null,null,null,"岩内ＮＷＣ"]
[null,"希望の有無",null,null,null,null,null,null,null,null,null,null,null,"希望する",null,null,null,null,null,null,null,null,null,null,null,null,null,null,null,null,null,null,null,null,null,null,null,null,null,null,null,null,null,null,null,null,null,null,null,null,null,null,null,null,null,null,null,null,null,null,null,null,null,null,null,null,null,null,null,null,null,null,null,null,null,null,null,null,null,null,null,null,"寿都ＮＷＣ"]
[null,"※希望しないを選択され、合計契約設備電力が50kW以上となった場合、弊社からご連絡いたします。",null,null,null,null,null,null,null,null,null,null,null,null,null,null,null,null,null,null,null,null,null,null,null,null,null,null,null,null,null,null,null,null,null,null,null,null,null,null,null,null,null,null,null,null,null,null,null,null,null,null,null,null,null,null,null,null,null,null,null,null,null,null,null,null,null,null,null,null,null,null,null,null,null,null,null,null,null,null,null,null,"倶知安ＮＷＣ"]
["１０．北海道電力ネットワークへの連絡事項"]
[null,null,null,null,null,null,null,null,null,null,null,null,null,null,null,null,null,null,null,null,null,null,null,null,null,null,null,null,null,null,null,null,null,null,null,null,null,null,null,null,null,null,null,null,null,null,null,null,null,null,null,null,null,null,null,null,null,null,null,null,null,null,null,null,null,null,null,null,null,null,null,null,null,null,null,null,null,null,null,null,null,null,"道東統括支店（帯広）"]
[null,null,null,null,null,null,null,null,null,null,null,null,null,null,null,null,null,null,null,null,null,null,null,null,null,null,null,null,null,null,null,null,null,null,null,null,null,null,null,null,null,null,null,null,null,null,null,null,null,null,null,null,null,null,null,null,null,null,null,null,null,null,null,null,null,null,null,null,null,null,null,null,null,null,null,null,null,null,null,null,null,null,"足寄ＮＷＣ"]
[null,null,null,null,null,null,null,null,null,null,null,null,null,null,null,null,null,null,null,null,null,null,null,null,null,null,null,null,null,null,null,null,null,null,null,null,null,null,null,null,null,null,null,null,null,null,null,null,null,null,null,null,null,null,null,null,null,null,null,null,null,null,null,null,null,null,null,null,null,null,null,null,null,null,null,null,null,null,null,null,null,null,"新得ＮＷＣ"]
[null,null,null,null,null,null,null,null,null,null,null,null,null,null,null,null,null,null,null,null,null,null,null,null,null,null,null,null,null,null,null,null,null,null,null,null,null,null,null,null,null,null,null,null,null,null,null,null,null,null,null,null,null,null,null,null,null,null,null,null,null,null,null,null,null,null,null,null,null,null,null,null,null,null,null,null,null,null,null,null,null,null,"池田ＮＷＣ"]
[null,null,null,null,null,null,null,null,null,null,null,null,null,null,null,null,null,null,null,null,null,null,null,null,null,null,null,null,null,null,null,null,null,null,null,null,null,null,null,null,null,null,null,null,null,null,null,null,null,null,null,null,null,null,null,null,null,null,null,null,null,null,null,null,null,null,null,null,null,null,null,null,null,null,null,null,null,null,null,null,null,null,"大樹ＮＷＣ"]
[]
[null,null,null,null,null,null,null,null,null,null,null,null,null,null,null,null,null,null,null,null,null,null,null,null,null,null,null,null,null,null,null,null,null,null,null,null,null,null,null,null,null,null,null,null,null,null,null,null,null,null,null,null,null,null,null,null,null,null,null,null,null,null,null,null,null,null,null,null,null,null,null,null,null,null,null,null,null,null,null,null,null,null,"釧路支店"]
["１１．負荷設備情報",null,null,null,null,null,null,null,null,null,null,null,null,null,null,null,null,null,null,null,null,null,null,null,null,null,null,null,null,null,null,null,null,null,null,null,null,null,null,null,null,null,null,null,null,null,null,null,null,null,null,null,null,null,null,null,null,null,null,null,null,null,null,null,null,null,null,null,null,null,null,null,null,null,null,null,null,null,null,null,null,null,"中標津ＮＷＣ"]
["　（１）電灯・小型機器",null,null,null,null,null,null,null,null,null,{"$f":"IF($N$5=\"電灯臨時\",\"※負荷設備契約の場合、内訳をすべて記入願います。（負荷設備契約以外は右記のとおり）\",\"\")","v":""},null,null,null,null,null,null,null,null,null,null,null,null,null,null,null,null,null,null,null,null,null,null,null,null,null,null,null,null,null,null,null,null,null,null,null,null,null,null,null,null,null,null,null,null,null,null,null,null,null,null,null,null,null,null,null,null,null,null,null,null,null,null,null,null,null,null,null,null,null,null,null,"弟子屈ＮＷＣ"]
[null,"電　灯",null,"機器種別",null,null,null,null,null,null,"出力",null,null,null,null,"力率",null,null,null,null,"入力",null,null,null,null,"灯数",null,null,null,null,"合計（入力）",null,null,null,null,"設置区分",null,null,null,"取付位置",null,null,null,null,null,null,null,null,null,null,null,null,null,null,null,null,null,null,null,null,null,null,null,null,null,null,null,null,null,null,null,null,null,null,null,null,null,null,null,null,null,null,"根室ＮＷＣ"]
[null,null,null,"選択してください",null,null,null,null,null,null,null,null,null,"Ｗ",null,"選択してください",null,null,null,null,null,null,null,"ＶＡ",null,null,null,null,"灯",null,{"$f":"IF(AND(U50=\"\",Z50=\"\"),\"\",U50*Z50)","v":""},null,null,"ＶＡ",null,"選択してください",null,null,null,"選択してください"]
[null,null,null,"選択してください",null,null,null,null,null,null,null,null,null,"Ｗ",null,"選択してください",null,null,null,null,null,null,null,"ＶＡ",null,null,null,null,"灯",null,{"$f":"IF(AND(U51=\"\",Z51=\"\"),\"\",U51*Z51)","v":""},null,null,"ＶＡ",null,"選択してください",null,null,null,"選択してください",null,null,null,null,null,null,null,null,null,null,null,null,null,null,null,null,null,null,null,null,null,null,null,null,null,null,null,null,null,null,null,null,null,null,null,null,null,null,null,null,null,null,"道央南統括支店（苫小牧）"]
[null,null,null,"選択してください",null,null,null,null,null,null,null,null,null,"Ｗ",null,"選択してください",null,null,null,null,null,null,null,"ＶＡ",null,null,null,null,"灯",null,"",null,null,"ＶＡ",null,"選択してください",null,null,null,"選択してください",null,null,null,null,null,null,null,null,null,null,null,null,null,null,null,null,null,null,null,null,null,null,null,null,null,null,null,null,null,null,null,null,null,null,null,null,null,null,null,null,null,null,"富川ＮＷＣ"]
[null,null,null,"選択してください",null,null,null,null,null,null,null,null,null,"Ｗ",null,"選択してください",null,null,null,null,null,null,null,"ＶＡ",null,null,null,null,"灯",null,"",null,null,"ＶＡ",null,"選択してください",null,null,null,"選択してください",null,null,null,null,null,null,null,null,null,null,null,null,null,null,null,null,null,null,null,null,null,null,null,null,null,null,null,null,null,null,null,null,null,null,null,null,null,null,null,null,null,null,"日高ＮＷＣ"]
[null,null,null,"選択してください",null,null,null,null,null,null,null,null,null,"Ｗ",null,"選択してください",null,null,null,null,null,null,null,"ＶＡ",null,null,null,null,"灯",null,"",null,null,"ＶＡ",null,"選択してください",null,null,null,"選択してください",null,null,null,null,null,null,null,null,null,null,null,null,null,null,null,null,null,null,null,null,null,null,null,null,null,null,null,null,null,null,null,null,null,null,null,null,null,null,null,null,null,null,"静内ＮＷＣ"]
[null,null,null,"選択してください",null,null,null,null,null,null,null,null,null,"Ｗ",null,"選択してください",null,null,null,null,null,null,null,"ＶＡ",null,null,null,null,"灯",null,"",null,null,"ＶＡ",null,"選択してください",null,null,null,"選択してください",null,null,null,null,null,null,null,null,null,null,null,null,null,null,null,null,null,null,null,null,null,null,null,null,null,null,null,null,null,null,null,null,null,null,null,null,null,null,null,null,null,null,"浦河ＮＷＣ"]
[null,null,null,"選択してください",null,null,null,null,null,null,null,null,null,"Ｗ",null,"選択してください",null,null,null,null,null,null,null,"ＶＡ",null,null,null,null,"灯",null,"",null,null,"ＶＡ",null,"選択してください",null,null,null,"選択してください"]
[null,null,null,"選択してください",null,null,null,null,null,null,null,null,null,"Ｗ",null,"選択してください",null,null,null,null,null,null,null,"ＶＡ",null,null,null,null,"灯",null,"",null,null,"ＶＡ",null,"選択してください",null,null,null,"選択してください",null,null,null,null,null,null,null,null,null,null,null,null,null,null,null,null,null,null,null,null,null,null,null,null,null,null,null,null,null,null,null,null,null,null,null,null,null,null,null,null,null,null,"室蘭支店"]
[null,null,null,"選択してください",null,null,null,null,null,null,null,null,null,"Ｗ",null,"選択してください",null,null,null,null,null,null,null,"ＶＡ",null,null,null,null,"灯",null,"",null,null,"ＶＡ",null,"選択してください",null,null,null,"選択してください"]
[null,null,null,"選択してください",null,null,null,null,null,null,null,null,null,"Ｗ",null,"選択してください",null,null,null,null,null,null,null,"ＶＡ",null,null,null,null,"灯",null,"",null,null,"ＶＡ",null,"選択してください",null,null,null,"選択してください",null,null,null,null,null,null,null,null,null,null,null,null,null,null,null,null,null,null,null,null,null,null,null,null,null,null,null,null,null,null,null,null,null,null,null,null,null,null,null,null,null,null,"道南統括支店（函館）"]
[null,null,null,null,null,null,null,null,null,null,null,null,null,null,null,null,null,null,null,null,"合計",null,null,null,null,{"$f":"IF(AND(Z50:AB59=\"\"),\"\",SUM(Z50:AB59))","v":""},null,null,"灯",null,{"$f":"IF(AND(AE50:AG59=\"\"),\"\",SUM(AE50:AG59))","v":""},null,null,"ＶＡ",null,null,null,null,null,null,null,null,null,null,null,null,null,null,null,null,null,null,null,null,null,null,null,null,null,null,null,null,null,null,null,null,null,null,null,null,null,null,null,null,null,null,null,null,null,null,null,null,"八雲ＮＷＣ"]
[null,"小　型　機　器",null,"機器種別",null,null,null,null,null,null,"出力",null,null,null,null,"力率",null,null,null,null,"入力",null,null,null,null,"個数",null,null,null,null,"合計（入力）",null,null,null,null,"設置区分",null,null,null,null,null,null,null,null,null,null,null,null,null,null,null,null,null,null,null,null,null,null,null,null,null,null,null,null,null,null,null,null,null,null,null,null,null,null,null,null,null,null,null,null,null,null,"江差ＮＷＣ"]
[null,null,null,null,null,null,null,null,null,null,null,null,null,"Ｗ",null,"選択してください",null,null,null,null,null,null,null,"ＶＡ",null,null,null,null,"個",null,{"$f":"IF(AND(U62=\"\",Z62=\"\"),\"\",U62*Z62)","v":""},null,null,"ＶＡ",null,"選択してください",null,null,null,null,null,null,null,null,null,null,null,null,null,null,null,null,null,null,null,null,null,null,null,null,null,null,null,null,null,null,null,null,null,null,null,null,null,null,null,null,null,null,null,null,null,null,"福島ＮＷＣ"]
[null,null,null,null,null,null,null,null,null,null,null,null,null,"Ｗ",null,"選択してください",null,null,null,null,null,null,null,"ＶＡ",null,null,null,null,"個",null,{"$f":"IF(AND(U63=\"\",Z63=\"\"),\"\",U63*Z63)","v":""},null,null,"ＶＡ",null,"選択してください"]
[null,null,null,null,null,null,null,null,null,null,null,null,null,"Ｗ",null,"選択してください",null,null,null,null,null,null,null,"ＶＡ",null,null,null,null,"個",null,"",null,null,"ＶＡ",null,"選択してください"]
[null,null,null,null,null,null,null,null,null,null,null,null,null,"Ｗ",null,"選択してください",null,null,null,null,null,null,null,"ＶＡ",null,null,null,null,"個",null,"",null,null,"ＶＡ",null,"選択してください"]
[null,null,null,null,null,null,null,null,null,null,null,null,null,"Ｗ",null,"選択してください",null,null,null,null,null,null,null,"ＶＡ",null,null,null,null,"個",null,"",null,null,"ＶＡ",null,"選択してください"]
[null,null,null,null,null,null,null,null,null,null,null,null,null,"Ｗ",null,"選択してください",null,null,null,null,null,null,null,"ＶＡ",null,null,null,null,"個",null,"",null,null,"ＶＡ",null,"選択してください"]
[null,null,null,null,null,null,null,null,null,null,null,null,null,"Ｗ",null,"選択してください",null,null,null,null,null,null,null,"ＶＡ",null,null,null,null,"個",null,"",null,null,"ＶＡ",null,"選択してください"]
[null,null,null,null,null,null,null,null,null,null,null,null,null,"Ｗ",null,"選択してください",null,null,null,null,null,null,null,"ＶＡ",null,null,null,null,"個",null,"",null,null,"ＶＡ",null,"選択してください"]
[null,null,null,null,null,null,null,null,null,null,null,null,null,"Ｗ",null,"選択してください",null,null,null,null,null,null,null,"ＶＡ",null,null,null,null,"個",null,"",null,null,"ＶＡ",null,"選択してください"]
[null,null,null,null,null,null,null,null,null,null,null,null,null,"Ｗ",null,"選択してください",null,null,null,null,null,null,null,"ＶＡ",null,null,null,null,"個",null,"",null,null,"ＶＡ",null,"選択してください"]
[null,null,null,null,null,null,null,null,null,null,null,null,null,"Ｗ",null,"選択してください",null,null,null,null,null,null,null,"ＶＡ",null,null,null,null,"個",null,"",null,null,"ＶＡ",null,"選択してください",null,null,null,"200Ｖ機器"]
[null,null,null,null,null,null,null,null,null,null,null,null,null,"Ｗ",null,"選択してください",null,null,null,null,null,null,null,"ＶＡ",null,null,null,null,"個",null,"",null,null,"ＶＡ",null,"選択してください",null,null,null,"200Ｖ機器"]
[null,null,null,null,null,null,null,null,null,null,null,null,null,"Ｗ",null,"選択してください",null,null,null,null,null,null,null,"ＶＡ",null,null,null,null,"個",null,"",null,null,"ＶＡ",null,"選択してください",null,null,null,"200Ｖ機器"]
[null,null,null,null,null,null,null,null,null,null,null,null,null,"Ｗ",null,"選択してください",null,null,null,null,null,null,null,"ＶＡ",null,null,null,null,"個",null,"",null,null,"ＶＡ",null,"選択してください",null,null,null,"200Ｖ機器"]
[null,null,null,null,null,null,null,null,null,null,null,null,null,"Ｗ",null,"選択してください",null,null,null,null,null,null,null,"ＶＡ",null,null,null,null,"個",null,"",null,null,"ＶＡ",null,"選択してください",null,null,null,"200Ｖ機器"]
[null,null,null,null,null,null,null,null,null,null,null,null,null,null,null,null,null,null,null,null,"合計",null,null,null,null,{"$f":"IF(AND(Z62:AB76=\"\"),\"\",SUM(Z62:AB76))","v":""},null,null,"個",null,{"$f":"IF(AND(AE62:AG76=\"\"),\"\",SUM(AE62:AG76))","v":""},null,null,"ＶＡ"]
[]
["　（２）動力機器"]
[null,"機器種別",null,null,null,null,"メーカー",null,null,null,"型式",null,null,null,null,"力率",null,null,"出力",null,null,null,null,"入力",null,null,null,null,"台数",null,null,null,null,"合計（入力）",null,null,null,null,"コンデンサ容量",null,null,null,null,"設置区分"]
[null,null,null,null,null,null,null,null,null,null,null,null,null,null,null,"選択",null,null,null,null,null,"選択",null,null,null,null,"ｋＷ",null,null,null,null,"台",null,{"$f":"IF(AND(X81=\"\",AC81=\"\"),\"\",X81*AC81)","v":""},null,null,"ｋＷ",null,null,null,null,"μＦ",null,"選択してください"]
[null,null,null,null,null,null,null,null,null,null,null,null,null,null,null,"選択",null,null,null,null,null,"選択",null,null,null,null,"ｋＷ",null,null,null,null,"台",null,{"$f":"IF(AND(X82=\"\",AC82=\"\"),\"\",X82*AC82)","v":""},null,null,"ｋＷ",null,null,null,null,"μＦ",null,"選択してください"]
[null,null,null,null,null,null,null,null,null,null,null,null,null,null,null,"選択",null,null,null,null,null,"選択",null,null,null,null,"ｋＷ",null,null,null,null,"台",null,"",null,null,"ｋＷ",null,null,null,null,"μＦ",null,"選択してください"]
[null,null,null,null,null,null,null,null,null,null,null,null,null,null,null,"選択",null,null,null,null,null,"選択",null,null,null,null,"ｋＷ",null,null,null,null,"台",null,"",null,null,"ｋＷ",null,null,null,null,"μＦ",null,"選択してください"]
[null,null,null,null,null,null,null,null,null,null,null,null,null,null,null,"選択",null,null,null,null,null,"選択",null,null,null,null,"ｋＷ",null,null,null,null,"台",null,"",null,null,"ｋＷ",null,null,null,null,"μＦ",null,"選択してください"]
[null,null,null,null,null,null,null,null,null,null,null,null,null,null,null,"選択",null,null,null,null,null,"選択",null,null,null,null,"ｋＷ",null,null,null,null,"台",null,"",null,null,"ｋＷ",null,null,null,null,"μＦ",null,"選択してください"]
[null,null,null,null,null,null,null,null,null,null,null,null,null,null,null,"選択",null,null,null,null,null,"選択",null,null,null,null,"ｋＷ",null,null,null,null,"台",null,"",null,null,"ｋＷ",null,null,null,null,"μＦ",null,"選択してください"]
[null,null,null,null,null,null,null,null,null,null,null,null,null,null,null,"選択",null,null,null,null,null,"選択",null,null,null,null,"ｋＷ",null,null,null,null,"台",null,"",null,null,"ｋＷ",null,null,null,null,"μＦ",null,"選択してください"]
[null,null,null,null,null,null,null,null,null,null,null,null,null,null,null,"選択",null,null,null,null,null,"選択",null,null,null,null,"ｋＷ",null,null,null,null,"台",null,"",null,null,"ｋＷ",null,null,null,null,"μＦ",null,"選択してください"]
[null,null,null,null,null,null,null,null,null,null,null,null,null,null,null,"選択",null,null,null,null,null,"選択",null,null,null,null,"ｋＷ",null,null,null,null,"台",null,"",null,null,"ｋＷ",null,null,null,null,"μＦ",null,"選択してください"]
[null,null,null,null,null,null,null,null,null,null,null,null,null,null,null,"選択",null,null,null,null,null,"選択",null,null,null,null,"ｋＷ",null,null,null,null,"台",null,"",null,null,"ｋＷ",null,null,null,null,"μＦ",null,"選択してください"]
[null,null,null,null,null,null,null,null,null,null,null,null,null,null,null,null,null,null,null,null,null,null,null,"合計",null,null,null,null,{"$f":"IF(AND(AC81:AE91=\"\"),\"\",SUM(AC81:AE91))","v":""},null,null,"台",null,{"$f":"IF(AND(AH81:AJ91=\"\"),\"\",SUM(AH81:AJ91))","v":""},null,null,"ｋＷ"]
[]
["　（３）溶接機"]
[null,"メーカー",null,null,null,"型式",null,null,null,null,null,null,null,"日本工業規格",null,null,null,null,"コンデンサ",null,null,null,null,"１次入力",null,null,null,null,"入力",null,null,null,null,"台数",null,null,null,null,"合計（入力）",null,null,null,null,"設置区分"]
[null,null,null,null,null,null,null,null,null,null,null,null,null,"選択してください",null,null,null,null,"選択してください",null,null,null,null,null,null,null,"ｋＶＡ",null,null,null,null,"ｋＷ",null,null,null,null,"台",null,{"$f":"IF(AND(AC96=\"\",AH96=\"\"),\"\",AC96*AH96)","v":""},null,null,"ｋＷ",null,"選択してください"]
[null,null,null,null,null,null,null,null,null,null,null,null,null,"選択してください",null,null,null,null,"選択してください",null,null,null,null,null,null,null,"ｋＶＡ",null,null,null,null,"ｋＷ",null,null,null,null,"台",null,{"$f":"IF(AND(AC97=\"\",AH97=\"\"),\"\",AC97*AH97)","v":""},null,null,"ｋＷ",null,"選択してください"]
[null,null,null,null,null,null,null,null,null,null,null,null,null,"選択してください",null,null,null,null,"選択してください",null,null,null,null,null,null,null,"ｋＶＡ",null,null,null,null,"ｋＷ",null,null,null,null,"台",null,"",null,null,"ｋＷ",null,"選択してください"]
[null,null,null,null,null,null,null,null,null,null,null,null,null,null,null,null,null,null,null,null,null,null,null,null,null,null,null,null,"合計",null,null,null,null,{"$f":"IF(AND(AH96:AJ98=\"\"),\"\",SUM(AH96:AJ98))","v":""},null,null,"台",null,{"$f":"IF(AND(AM96:AO98=\"\"),\"\",SUM(AM96:AO98))","v":""},null,null,"ｋＷ"]
["※記載欄が不足する場合は，複数枚に分けて記入願います。"]

{"sheet":"集合住宅用","index":1,"n_rows":96,"n_cols":39,"rows_kept":96,"cut":false,"hidden":false,"merged":[[95,33,95,35],[95,36,95,37],[94,33,94,35],[94,36,94,37],[95,6,95,12],[95,13,95,15],[95,16,95,17],[95,18,95,22],[95,23,95,25],[95,26,95,27],[95,28,95,30],[95,31,95,32],[93,36,93,37],[94,6,94,12],[94,13,94,15],[94,16,94,17],[94,18,94,22],[94,23,94,25],[94,26,94,27],[94,28,94,30],[94,31,94,32],[93,6,93,12],[93,13,93,15],[93,16,93,17],[93,18,93,22],[93,23,93,25],[93,26,93,27],[93,28,93,30],[93,31,93,32],[93,33,93,35],[91,18,91,22],[91,23,91,25],[91,26,91,27],[91,28,91,30],[91,31,91,32],[91,33,91,35],[91,36,91,37],[92,6,92,12],[92,13,92,15],[92,16,92,17],[92,18,92,22],[92,23,92,25],[92,26,92,27],[92,28,92,30],[92,31,92,32],[92,33,92,35],[92,36,92,37],[86,36,86,37],[87,1,95,5],[87,6,87,12],[87,13,87,17],[87,18,87,19],[87,20,87,24],[87,25,87,26],[87,27,88,49],[88,6,88,12],[88,13,88,17],[88,18,88,19],[88,20,88,24],[88,25,88,26],[89,6,89,49],[90,6,90,12],[90,13,90,17],[90,18,90,22],[90,23,90,27],[90,28,90,32],[90,33,90,37],[90,38,95,49],[91,6,91,12],[91,13,91,15],[91,16,91,17],[86,6,86,12],[86,13,86,15],[86,16,86,17],[86,18,86,22],[86,23,86,25],[86,26,86,27],[86,28,86,30],[86,31,86,32],[86,33,86,35],[84,36,84,37],[85,6,85,12],[85,13,85,15],[85,16,85,17],[85,18,85,22],[85,23,85,25],[85,26,85,27],[85,28,85,30],[85,31,85,32],[85,33,85,35],[85,36,85,37],[84,6,84,12],[84,13,84,15],[84,16,84,17],[84,18,84,22],[84,23,84,25],[84,26,84,27],[84,28,84,30],[84,31,84,32],[84,33,84,35],[82,18,82,22],[82,23,82,25],[82,26,82,27],[82,28,82,30],[82,31,82,32],[82,33,82,35],[82,36,82,37],[83,6,83,12],[83,13,83,15],[83,16,83,17],[83,18,83,22],[83,23,83,25],[83,26,83,27],[83,28,83,30],[83,31,83,32],[83,33,83,35],[83,36,83,37],[77,36,77,37],[78,1,86,5],[78,6,78,12],[78,13,78,17],[78,18,78,19],[78,20,78,24],[78,25,78,26],[78,27,79,49],[79,6,79,12],[79,13,79,17],[79,18,79,19],[79,20,79,24],[79,25,79,26],[80,6,80,49],[81,6,81,12],[81,13,81,17],[81,18,81,22],[81,23,81,27],[81,28,81,32],[81,33,81,37],[81,38,86,49],[82,6,82,12],[82,13,82,15],[82,16,82,17],[77,6,77,12],[77,13,77,15],[77,16,77,17],[77,18,77,22],[77,23,77,25],[77,26,77,27],[77,28,77,30],[77,31,77,32],[77,33,77,35],[75,36,75,37],[76,6,76,12],[76,13,76,15],[76,16,76,17],[76,18,76,22],[76,23,76,25],[76,26,76,27],[76,28,76,30],[76,31,76,32],[76,33,76,35],[76,36,76,37],[75,6,75,12],[75,13,75,15],[75,16,75,17],[75,18,75,22],[75,23,75,25],[75,26,75,27],[75,28,75,30],[75,31,75,32],[75,33,75,35],[73,18,73,22],[73,23,73,25],[73,26,73,27],[73,28,73,30],[73,31,73,32],[73,33,73,35],[73,36,73,37],[74,6,74,12],[74,13,74,15],[74,16,74,17],[74,18,74,22],[74,23,74,25],[74,26,74,27],[74,28,74,30],[74,31,74,32],[74,33,74,35],[74,36,74,37],[68,36,68,37],[69,1,77,5],[69,6,69,12],[69,13,69,17],[69,18,69,19],[69,20,69,24],[69,25,69,26],[69,27,70,49],[70,6,70,12],[70,13,70,17],[70,18,70,19],[70,20,70,24],[70,25,70,26],[71,6,71,49],[72,6,72,12],[72,13,72,17],[72,18,72,22],[72,23,72,27],[72,28,72,32],[72,33,72,37],[72,38,77,49],[73,6,73,12],[73,13,73,15],[73,16,73,17],[68,6,68,12],[68,13,68,15],[68,16,68,17],[68,18,68,22],[68,23,68,25],[68,26,68,27],[68,28,68,30],[68,31,68,32],[68,33,68,35],[66,36,66,37],[67,6,67,12],[67,13,67,15],[67,16,67,17],[67,18,67,22],[67,23,67,25],[67,26,67,27],[67,28,67,30],[67,31,67,32],[67,33,67,35],[67,36,67,37],[66,6,66,12],[66,13,66,15],[66,16,66,17],[66,18,66,22],[66,23,66,25],[66,26,66,27],[66,28,66,30],[66,31,66,32],[66,33,66,35],[64,18,64,22],[64,23,64,25],[64,26,64,27],[64,28,64,30],[64,31,64,32],[64,33,64,35],[64,36,64,37],[65,6,65,12],[65,13,65,15],[65,16,65,17],[65,18,65,22],[65,23,65,25],[65,26,65,27],[65,28,65,30],[65,31,65,32],[65,33,65,35],[65,36,65,37],[60,1,68,5],[60,6,60,12],[60,13,60,17],[60,18,60,19],[60,20,60,24],[60,25,60,26],[60,27,61,49],[61,6,61,12],[51,1,59,5],[61,13,61,17],[61,18,61,19],[61,20,61,24],[61,25,61,26],[62,6,62,49],[63,6,63,12],[63,13,63,17],[63,18,63,22],[63,23,63,27],[63,28,63,32],[63,33,63,37],[63,38,68,49],[64,6,64,12],[64,13,64,15],[64,16,64,17],[58,36,58,37],[59,6,59,12],[59,13,59,15],[59,16,59,17],[59,18,59,22],[59,23,59,25],[59,26,59,27],[59,28,59,30],[59,31,59,32],[59,33,59,35],[59,36,59,37],[58,6,58,12],[58,13,58,15],[58,16,58,17],[58,18,58,22],[58,23,58,25],[58,26,58,27],[58,28,58,30],[58,31,58,32],[58,33,58,35],[55,28,55,30],[55,31,55,32],[56,33,56,35],[56,36,56,37],[57,6,57,12],[57,13,57,15],[57,16,57,17],[57,18,57,22],[57,23,57,25],[57,26,57,27],[57,28,57,30],[57,31,57,32],[57,33,57,35],[57,36,57,37],[53,6,53,49],[54,6,54,12],[54,13,54,17],[54,18,54,22],[54,23,54,27],[54,28,54,32],[54,33,54,37],[54,38,59,49],[55,6,55,12],[55,13,55,15],[55,33,55,35],[55,36,55,37],[56,6,56,12],[56,13,56,15],[56,16,56,17],[56,18,56,22],[56,23,56,25],[56,26,56,27],[56,28,56,30],[56,31,56,32],[55,16,55,17],[55,18,55,22],[55,23,55,25],[55,26,55,27],[50,6,50,12],[50,13,50,15],[50,16,50,17],[50,18,50,22],[50,23,50,25],[50,26,50,27],[51,27,52,49],[52,6,52,12],[52,13,52,17],[52,18,52,19],[52,20,52,24],[52,25,52,26],[50,28,50,30],[50,31,50,32],[50,33,50,35],[50,36,50,37],[51,6,51,12],[51,13,51,17],[51,18,51,19],[51,20,51,24],[51,25,51,26],[48,36,48,37],[49,6,49,12],[49,13,49,15],[49,16,49,17],[49,18,49,22],[49,23,49,25],[49,26,49,27],[49,28,49,30],[49,31,49,32],[49,33,49,35],[49,36,49,37],[48,6,48,12],[48,13,48,15],[48,16,48,17],[48,18,48,22],[48,23,48,25],[48,26,48,27],[48,28,48,30],[48,31,48,32],[48,33,48,35],[46,23,46,25],[46,26,46,27],[46,28,46,30],[46,31,46,32],[46,33,46,35],[46,36,46,37],[47,6,47,12],[47,13,47,15],[47,16,47,17],[47,18,47,22],[47,23,47,25],[47,26,47,27],[47,28,47,30],[47,31,47,32],[47,33,47,35],[47,36,47,37],[42,27,43,49],[43,6,43,12],[43,13,43,17],[43,18,43,19],[43,20,43,24],[43,25,43,26],[42,1,50,5],[42,6,42,12],[42,13,42,17],[42,18,42,19],[42,20,42,24],[42,25,42,26],[44,6,44,49],[45,6,45,12],[45,13,45,17],[45,18,45,22],[45,23,45,27],[45,28,45,32],[45,33,45,37],[45,38,50,49],[46,6,46,12],[46,13,46,15],[46,16,46,17],[46,18,46,22],[30,1,30,7],[30,8,30,49],[31,1,31,7],[31,8,31,49],[41,1,41,5],[41,6,41,49],[27,1,27,7],[27,8,27,49],[28,1,28,7],[28,8,28,49],[29,1,29,7],[29,8,29,49],[22,31,22,33],[22,34,22,35],[25,1,25,7],[25,8,25,49],[26,1,26,7],[26,8,26,49],[21,29,21,30],[21,31,21,33],[21,34,21,35],[22,1,22,7],[22,8,22,14],[22,15,22,16],[22,17,22,19],[22,20,22,21],[22,22,22,28],[22,29,22,30],[21,1,21,7],[21,8,21,14],[21,15,21,16],[21,17,21,19],[21,20,21,21],[21,22,21,28],[16,13,16,20],[16,21,16,49],[17,13,17,20],[17,21,17,49],[20,1,20,7],[20,8,20,14],[4,1,4,49],[7,0,11,49],[12,1,17,12],[13,13,13,20],[13,21,13,49],[14,13,14,20],[14,21,14,49],[15,13,15,20],[15,21,15,49],[12,14,12,20]]}
[]
["集合住宅のお申込みの場合は，このページも合わせてご記入をお願いいたします。"]
[]
["1２．建物名"]
[]
[]
["1３．オートロックマンション対応先",null,null,null,null,null,null,null,null,null,null,null,null,null,null,"※オートロックマンションではない場合および計量器取付位置が屋外の場合は記入不要です。"]
["　弊社では，接続供給契約にかかわる各種業務を実施するため，オートロックマンションにおける暗証番号または鍵のご提供（借用）についてご協力をお願いしております。\n　つきましては，本申込みに合わせて，暗証番号または鍵のご提供（借用）にかかわる対応先等を以下に記入のうえ，ご提出いただきますようお願いいたします。\n　なお，ご提出いただいた後，弊社より対応先に連絡をさせていただき，具体的な暗証番号または鍵のご提供（借用）にかかわる手続き（契約書または覚書の締結等）を行ないます。"]
[]
[]
[]
[]
[null,"対応連絡先",null,null,null,null,null,null,null,null,null,null,null,false,"需要者情報と同じ"]
[null,null,null,null,null,null,null,null,null,null,null,null,null,"会社名"]
[null,null,null,null,null,null,null,null,null,null,null,null,null,"連絡先住所"]
[null,null,null,null,null,null,null,null,null,null,null,null,null,"ご担当者名"]
[null,null,null,null,null,null,null,null,null,null,null,null,null,"電話番号"]
[null,null,null,null,null,null,null,null,null,null,null,null,null,"メールアドレス"]
[]
["1４．申込内訳"]
[null,"共用",null,null,null,null,null,null,"選択してください"]
[null,"住戸",null,null,null,null,null,null,"戸数",null,null,null,null,null,null,"全",null,null,null,null,"戸",null,"契約口数",null,null,null,null,null,null,"全",null,null,null,null,"口"]
[null,"住戸以外",null,null,null,null,null,null,"戸数",null,null,null,null,null,null,"全",null,null,null,null,"戸",null,"契約口数",null,null,null,null,null,null,"全",null,null,null,null,"口"]
[]
["＜部屋番号＞",null,null,null,null,null,"※契約パターンごとの部屋番号のご記入をお願いいたします。"]
[null,"パターン区分",null,null,null,null,null,null,"部　屋　番　号"]
[null,"Ａ"]
[null,"Ｂ"]
[null,"Ｃ"]
[null,"Ｄ"]
[null,"Ｅ"]
[null,"Ｆ"]
[null,"※住戸部分の負荷設備情報につきましては，各契約パターンごとに２ページ目にご記入ください。"]
[null,"※共用部分の負荷設備情報につきましては，「負荷設備等内訳書」シートの２ページ目にご記入ください。"]
[null,"※テナント等，共用および住戸以外の契約のお申込みがある場合，その契約の負荷設備情報につきましては，お手数ですが，"]
[null,"　「負荷設備等内訳書」をもう１部作成いただき，そちらにご記入のうえ，ご提出をお願いいたします。"]
[]
[]
[]
[]
["1５．負荷設備情報（集合住宅　住戸部分）"]
[null,"パターン区分",null,null,null,null,"負　荷　設　備　情　報"]
[null,"Ａ",null,null,null,null,"電　灯",null,null,null,null,null,null,null,null,null,null,null,"灯",null,null,null,null,null,null,"ＶＡ",null,"合計の灯・個数および容量（入力）を記入願います。"]
[null,null,null,null,null,null,"小　型　機　器",null,null,null,null,null,null,null,null,null,null,null,"個",null,null,null,null,null,null,"ＶＡ"]
[null,null,null,null,null,null,"小　型　機　器　の　う　ち　２　０　０　Ｖ　機　器　（　再　掲　）"]
[null,null,null,null,null,null,"機器種別",null,null,null,null,null,null,"出力",null,null,null,null,"力率",null,null,null,null,"入力",null,null,null,null,"個数",null,null,null,null,"合計（入力）",null,null,null,null,"２００Ｖ機器を設置する場合は，内訳をすべて記入願います。"]
[null,null,null,null,null,null,null,null,null,null,null,null,null,null,null,null,"Ｗ",null,"選択してください",null,null,null,null,null,null,null,"ＶＡ",null,null,null,null,"個",null,{"$f":"IF(AND(X47=\"\",AC47=\"\"),\"\",X47*AC47)","v":""},null,null,"ＶＡ"]
[null,null,null,null,null,null,null,null,null,null,null,null,null,null,null,null,"Ｗ",null,"選択してください",null,null,null,null,null,null,null,"ＶＡ",null,null,null,null,"個",null,{"$f":"IF(AND(X48=\"\",AC48=\"\"),\"\",X48*AC48)","v":""},null,null,"ＶＡ"]
[null,null,null,null,null,null,null,null,null,null,null,null,null,null,null,null,"Ｗ",null,"選択してください",null,null,null,null,null,null,null,"ＶＡ",null,null,null,null,"個",null,{"$f":"IF(AND(X49=\"\",AC49=\"\"),\"\",X49*AC49)","v":""},null,null,"ＶＡ"]
[null,null,null,null,null,null,null,null,null,null,null,null,null,null,null,null,"Ｗ",null,"選択してください",null,null,null,null,null,null,null,"ＶＡ",null,null,null,null,"個",null,"",null,null,"ＶＡ"]
[null,null,null,null,null,null,null,null,null,null,null,null,null,null,null,null,"Ｗ",null,"選択してください",null,null,null,null,null,null,null,"ＶＡ",null,null,null,null,"個",null,"",null,null,"ＶＡ"]
[null,"Ｂ",null,null,null,null,"電　灯",null,null,null,null,null,null,null,null,null,null,null,"灯",null,null,null,null,null,null,"ＶＡ",null,"合計の灯・個数および容量（入力）を記入願います。"]
[null,null,null,null,null,null,"小　型　機　器",null,null,null,null,null,null,null,null,null,null,null,"個",null,null,null,null,null,null,"ＶＡ"]
[null,null,null,null,null,null,"小　型　機　器　の　う　ち　２　０　０　Ｖ　機　器　（　再　掲　）"]
[null,null,null,null,null,null,"機器種別",null,null,null,null,null,null,"出力",null,null,null,null,"力率",null,null,null,null,"入力",null,null,null,null,"個数",null,null,null,null,"合計（入力）",null,null,null,null,"２００Ｖ機器を設置する場合は，内訳をすべて記入願います。"]
[null,null,null,null,null,null,null,null,null,null,null,null,null,null,null,null,"Ｗ",null,"選択してください",null,null,null,null,null,null,null,"ＶＡ",null,null,null,null,"個",null,{"$f":"IF(AND(X56=\"\",AC56=\"\"),\"\",X56*AC56)","v":""},null,null,"ＶＡ"]
[null,null,null,null,null,null,null,null,null,null,null,null,null,null,null,null,"Ｗ",null,"選択してください",null,null,null,null,null,null,null,"ＶＡ",null,null,null,null,"個",null,{"$f":"IF(AND(X57=\"\",AC57=\"\"),\"\",X57*AC57)","v":""},null,null,"ＶＡ"]
[null,null,null,null,null,null,null,null,null,null,null,null,null,null,null,null,"Ｗ",null,"選択してください",null,null,null,null,null,null,null,"ＶＡ",null,null,null,null,"個",null,{"$f":"IF(AND(X58=\"\",AC58=\"\"),\"\",X58*AC58)","v":""},null,null,"ＶＡ"]
[null,null,null,null,null,null,null,null,null,null,null,null,null,null,null,null,"Ｗ",null,"選択してください",null,null,null,null,null,null,null,"ＶＡ",null,null,null,null,"個",null,"",null,null,"ＶＡ"]
[null,null,null,null,null,null,null,null,null,null,null,null,null,null,null,null,"Ｗ",null,"選択してください",null,null,null,null,null,null,null,"ＶＡ",null,null,null,null,"個",null,"",null,null,"ＶＡ"]
[null,"Ｃ",null,null,null,null,"電　灯",null,null,null,null,null,null,null,null,null,null,null,"灯",null,null,null,null,null,null,"ＶＡ",null,"合計の灯・個数および容量（入力）を記入願います。"]
[null,null,null,null,null,null,"小　型　機　器",null,null,null,null,null,null,null,null,null,null,null,"個",null,null,null,null,null,null,"ＶＡ"]
[null,null,null,null,null,null,"小　型　機　器　の　う　ち　２　０　０　Ｖ　機　器　（　再　掲　）"]
[null,null,null,null,null,null,"機器種別",null,null,null,null,null,null,"出力",null,null,null,null,"力率",null,null,null,null,"入力",null,null,null,null,"個数",null,null,null,null,"合計（入力）",null,null,null,null,"２００Ｖ機器を設置する場合は，内訳をすべて記入願います。"]
[null,null,null,null,null,null,null,null,null,null,null,null,null,null,null,null,"Ｗ",null,"選択してください",null,null,null,null,null,null,null,"ＶＡ",null,null,null,null,"個",null,{"$f":"IF(AND(X65=\"\",AC65=\"\"),\"\",X65*AC65)","v":""},null,null,"ＶＡ"]
[null,null,null,null,null,null,null,null,null,null,null,null,null,null,null,null,"Ｗ",null,"選択してください",null,null,null,null,null,null,null,"ＶＡ",null,null,null,null,"個",null,{"$f":"IF(AND(X66=\"\",AC66=\"\"),\"\",X66*AC66)","v":""},null,null,"ＶＡ"]
[null,null,null,null,null,null,null,null,null,null,null,null,null,null,null,null,"Ｗ",null,"選択してください",null,null,null,null,null,null,null,"ＶＡ",null,null,null,null,"個",null,{"$f":"IF(AND(X67=\"\",AC67=\"\"),\"\",X67*AC67)","v":""},null,null,"ＶＡ"]
[null,null,null,null,null,null,null,null,null,null,null,null,null,null,null,null,"Ｗ",null,"選択してください",null,null,null,null,null,null,null,"ＶＡ",null,null,null,null,"個",null,"",null,null,"ＶＡ"]
[null,null,null,null,null,null,null,null,null,null,null,null,null,null,null,null,"Ｗ",null,"選択してください",null,null,null,null,null,null,null,"ＶＡ",null,null,null,null,"個",null,"",null,null,"ＶＡ"]
[null,"Ｄ",null,null,null,null,"電　灯",null,null,null,null,null,null,null,null,null,null,null,"灯",null,null,null,null,null,null,"ＶＡ",null,"合計の灯・個数および容量（入力）を記入願います。"]
[null,null,null,null,null,null,"小　型　機　器",null,null,null,null,null,null,null,null,null,null,null,"個",null,null,null,null,null,null,"ＶＡ"]
[null,null,null,null,null,null,"小　型　機　器　の　う　ち　２　０　０　Ｖ　機　器　（　再　掲　）"]
[null,null,null,null,null,null,"機器種別",null,null,null,null,null,null,"出力",null,null,null,null,"力率",null,null,null,null,"入力",null,null,null,null,"個数",null,null,null,null,"合計（入力）",null,null,null,null,"２００Ｖ機器を設置する場合は，内訳をすべて記入願います。"]
[null,null,null,null,null,null,null,null,null,null,null,null,null,null,null,null,"Ｗ",null,"選択してください",null,null,null,null,null,null,null,"ＶＡ",null,null,null,null,"個",null,{"$f":"IF(AND(X74=\"\",AC74=\"\"),\"\",X74*AC74)","v":""},null,null,"ＶＡ"]
[null,null,null,null,null,null,null,null,null,null,null,null,null,null,null,null,"Ｗ",null,"選択してください",null,null,null,null,null,null,null,"ＶＡ",null,null,null,null,"個",null,{"$f":"IF(AND(X75=\"\",AC75=\"\"),\"\",X75*AC75)","v":""},null,null,"ＶＡ"]
[null,null,null,null,null,null,null,null,null,null,null,null,null,null,null,null,"Ｗ",null,"選択してください",null,null,null,null,null,null,null,"ＶＡ",null,null,null,null,"個",null,{"$f":"IF(AND(X76=\"\",AC76=\"\"),\"\",X76*AC76)","v":""},null,null,"ＶＡ"]
[null,null,null,null,null,null,null,null,null,null,null,null,null,null,null,null,"Ｗ",null,"選択してください",null,null,null,null,null,null,null,"ＶＡ",null,null,null,null,"個",null,"",null,null,"ＶＡ"]
[null,null,null,null,null,null,null,null,null,null,null,null,null,null,null,null,"Ｗ",null,"選択してください",null,null,null,null,null,null,null,"ＶＡ",null,null,null,null,"個",null,"",null,null,"ＶＡ"]
[null,"Ｅ",null,null,null,null,"電　灯",null,null,null,null,null,null,null,null,null,null,null,"灯",null,null,null,null,null,null,"ＶＡ",null,"合計の灯・個数および容量（入力）を記入願います。"]
[null,null,null,null,null,null,"小　型　機　器",null,null,null,null,null,null,null,null,null,null,null,"個",null,null,null,null,null,null,"ＶＡ"]
[null,null,null,null,null,null,"小　型　機　器　の　う　ち　２　０　０　Ｖ　機　器　（　再　掲　）"]
[null,null,null,null,null,null,"機器種別",null,null,null,null,null,null,"出力",null,null,null,null,"力率",null,null,null,null,"入力",null,null,null,null,"個数",null,null,null,null,"合計（入力）",null,null,null,null,"２００Ｖ機器を設置する場合は，内訳をすべて記入願います。"]
[null,null,null,null,null,null,null,null,null,null,null,null,null,null,null,null,"Ｗ",null,"選択してください",null,null,null,null,null,null,null,"ＶＡ",null,null,null,null,"個",null,{"$f":"IF(AND(X83=\"\",AC83=\"\"),\"\",X83*AC83)","v":""},null,null,"ＶＡ"]
[null,null,null,null,null,null,null,null,null,null,null,null,null,null,null,null,"Ｗ",null,"選択してください",null,null,null,null,null,null,null,"ＶＡ",null,null,null,null,"個",null,{"$f":"IF(AND(X84=\"\",AC84=\"\"),\"\",X84*AC84)","v":""},null,null,"ＶＡ"]
[null,null,null,null,null,null,null,null,null,null,null,null,null,null,null,null,"Ｗ",null,"選択してください",null,null,null,null,null,null,null,"ＶＡ",null,null,null,null,"個",null,{"$f":"IF(AND(X85=\"\",AC85=\"\"),\"\",X85*AC85)","v":""},null,null,"ＶＡ"]
[null,null,null,null,null,null,null,null,null,null,null,null,null,null,null,null,"Ｗ",null,"選択してください",null,null,null,null,null,null,null,"ＶＡ",null,null,null,null,"個",null,"",null,null,"ＶＡ"]
[null,null,null,null,null,null,null,null,null,null,null,null,null,null,null,null,"Ｗ",null,"選択してください",null,null,null,null,null,null,null,"ＶＡ",null,null,null,null,"個",null,"",null,null,"ＶＡ"]
[null,"Ｆ",null,null,null,null,"電　灯",null,null,null,null,null,null,null,null,null,null,null,"灯",null,null,null,null,null,null,"ＶＡ",null,"合計の灯・個数および容量（入力）を記入願います。"]
[null,null,null,null,null,null,"小　型　機　器",null,null,null,null,null,null,null,null,null,null,null,"個",null,null,null,null,null,null,"ＶＡ"]
[null,null,null,null,null,null,"小　型　機　器　の　う　ち　２　０　０　Ｖ　機　器　（　再　掲　）"]
[null,null,null,null,null,null,"機器種別",null,null,null,null,null,null,"出力",null,null,null,null,"力率",null,null,null,null,"入力",null,null,null,null,"個数",null,null,null,null,"合計（入力）",null,null,null,null,"２００Ｖ機器を設置する場合は，内訳をすべて記入願います。"]
[null,null,null,null,null,null,null,null,null,null,null,null,null,null,null,null,"Ｗ",null,"選択してください",null,null,null,null,null,null,null,"ＶＡ",null,null,null,null,"個",null,{"$f":"IF(AND(X92=\"\",AC92=\"\"),\"\",X92*AC92)","v":""},null,null,"ＶＡ"]
[null,null,null,null,null,null,null,null,null,null,null,null,null,null,null,null,"Ｗ",null,"選択してください",null,null,null,null,null,null,null,"ＶＡ",null,null,null,null,"個",null,{"$f":"IF(AND(X93=\"\",AC93=\"\"),\"\",X93*AC93)","v":""},null,null,"ＶＡ"]
[null,null,null,null,null,null,null,null,null,null,null,null,null,null,null,null,"Ｗ",null,"選択してください",null,null,null,null,null,null,null,"ＶＡ",null,null,null,null,"個",null,{"$f":"IF(AND(X94=\"\",AC94=\"\"),\"\",X94*AC94)","v":""},null,null,"ＶＡ"]
[null,null,null,null,null,null,null,null,null,null,null,null,null,null,null,null,"Ｗ",null,"選択してください",null,null,null,null,null,null,null,"ＶＡ",null,null,null,null,"個",null,"",null,null,"ＶＡ"]
[null,null,null,null,null,null,null,null,null,null,null,null,null,null,null,null,"Ｗ",null,"選択してください",null,null,null,null,null,null,null,"ＶＡ",null,null,null,null,"個",null,"",null,null,"ＶＡ"]